fUST/lending_fUST_20240325
["ID","MTS","AMOUNT","RATE_DAILY","PERIOD"]
[320444279,1711377039134,-388.44263919,0.00035905,2]
[320444280,1711377039145,-1166.77582394,0.00035905,4]
[320444281,1711377039161,-216.14106538,0.00035905,4]
[320444282,1711377039175,-1547.89593377,0.00035905,4]
[320444283,1711377039189,-225.69292783,0.00035909,4]
[320444284,1711377039202,-500.0,0.00035909,4]
[320444285,1711377039215,-404.199696,0.00035909,30]
[320444286,1711377039229,-15909.83960994,0.00035909,4]
[320444287,1711377039245,-207.675723,0.00036934,120]
[320444288,1711377039261,-154.95351395,0.00039039,4]
[320444289,1711377039279,-258.09463406,0.00039492,4]
[320444290,1711377039290,-154.95351395,0.00039492,4]
[320444291,1711377039302,-865.39980906,0.00039493,4]
[320444292,1711377039316,-640.0,0.00039494,3]
[320444293,1711377039330,-8525.53886055,0.0004,15]
[320444294,1711377039343,-1205.20024178,0.000405,30]
[320444295,1711377039354,-500.0,0.00041093,31]
[320444296,1711377039365,-500.0,0.00041093,31]
[320444297,1711377039379,-500.0,0.00041093,31]
[320444298,1711377039390,-500.0,0.00041093,31]
[320444299,1711377039403,-500.0,0.00041093,31]
[320444300,1711377039415,-500.0,0.00041093,31]
[320444301,1711377039428,-500.0,0.00041093,31]
[320444302,1711377039441,-144.87138942,0.00041093,31]
[320444303,1711377039506,-355.12861058,0.00041093,31]
[320444304,1711377039519,-500.0,0.00041093,31]
[320444305,1711377039534,-500.0,0.00041093,31]
[320444306,1711377039546,-500.0,0.00041093,31]
[320444307,1711377039560,-500.0,0.00041093,31]
[320444308,1711377039573,-500.0,0.00041093,31]
[320444309,1711377039586,-500.0,0.00041093,31]
[320444310,1711377039599,-500.0,0.00041093,31]
[320444311,1711377039611,-500.0,0.00041093,31]
[320444312,1711377039623,-500.0,0.00041093,31]
[320444313,1711377039636,-500.0,0.00041093,31]
[320444314,1711377039649,-500.0,0.00041093,31]
[320444315,1711377039661,-500.0,0.00041093,31]
[320444316,1711377039674,-500.0,0.00041093,31]
[320444317,1711377039686,-500.0,0.00041093,31]
[320444318,1711377039698,-292.88739863,0.00041093,31]
[320444319,1711377039711,-500.0,0.00041093,31]
[320444320,1711377039723,-500.0,0.00041093,31]
[320444321,1711377039735,-500.0,0.00041093,31]
[320444322,1711377039747,-500.0,0.00041093,31]
[320444323,1711377039760,-500.0,0.00041093,31]
[320444324,1711377039774,-790.46352518,0.00041094,4]
[320444325,1711377039786,-155.5091181,0.00041094,4]
[320444326,1711377039798,-180.08079379,0.00041094,4]
[320444327,1711377039812,-155.22704553,0.00041094,4]
[320444328,1711377039825,-1053.5505493,0.00041094,4]
[320444329,1711377039839,-974.56213166,0.00041094,4]
[320444330,1711377039850,-1672.73755636,0.00041094,4]
[320444331,1711377039859,-1056.76644962,0.00041094,4]
[320444332,1711377039868,-594.02888883,0.00041094,2]
[320444333,1711377039878,-1300.90046864,0.00041094,4]
[320444334,1711377039888,-292.22013204,0.00041094,2]
[320444335,1711377039898,-732.29672417,0.00041094,4]
[320444336,1711377039908,-322.828959,0.00041094,4]
[320444337,1711377039919,-1050.23883837,0.00041094,4]
[320444340,1711377040095,-389.92733011,0.00041094,4]
[320444342,1711377040123,-2082.77466787,0.00041094,2]
[320444343,1711377040133,-281.08411472,0.00041094,4]
[320444344,1711377040144,-8512.04997406,0.00041998,4]
[320444345,1711377040154,-155.85698215,0.00041998,4]
[320444347,1711377040166,-2270.1867077,0.00041999,4]
[320444349,1711377040176,-161.25256198,0.00041999,4]
[320444352,1711377040186,-291.35313108,0.00041999,4]
[320444354,1711377040195,-20722.93691575,0.00042,30]
[320444356,1711377040204,-593.945393,0.00042354,2]
[320444358,1711377040214,-155.0022488,0.00042919,11]
[320444360,1711377040224,-177.649457,0.00043019,2]
[320444362,1711377040233,-207.675723,0.00043089,120]
[320444363,1711377040245,-324.0,0.00043443,3]
[320444365,1711377040254,-3362.983825,0.00043551,2]
[320444367,1711377040264,-356.76754635,0.0004448,120]
[320444369,1711377040278,-194.41995085,0.0004448,120]
[320444371,1711377040288,-500.0,0.0004448,120]
[320444373,1711377040297,-500.0,0.0004448,120]
[320444375,1711377040307,-500.0,0.0004448,120]
[320444378,1711377040317,-500.0,0.0004448,120]
[320444381,1711377040327,-628.46922378,0.0004448,120]
[320444383,1711377040337,-500.0,0.0004448,120]
[320444386,1711377040347,-500.0,0.0004448,120]
[320444387,1711377040356,-500.0,0.0004448,120]
[320444390,1711377040366,-500.0,0.0004448,120]
[320444392,1711377040376,-500.0,0.0004448,120]
[320444394,1711377040386,-500.0,0.0004448,120]
[320444397,1711377040396,-500.0,0.0004448,120]
[320444399,1711377040406,-500.0,0.0004448,120]
[320444401,1711377040415,-500.0,0.0004448,120]
[320444403,1711377040428,-500.0,0.0004448,120]
[320444405,1711377040438,-500.0,0.0004448,120]
[320444407,1711377040447,-500.0,0.0004448,120]
[320444409,1711377040456,-500.0,0.0004448,120]
[320444411,1711377040466,-500.0,0.0004448,120]
[320444413,1711377040476,-421.79110872,0.0004448,120]
[320444415,1711377040485,-500.0,0.0004448,120]
[320444417,1711377040494,-500.0,0.0004448,120]
[320444419,1711377040504,-500.0,0.0004448,120]
[320444421,1711377040513,-500.0,0.0004448,120]
[320444423,1711377040524,-500.0,0.0004448,120]
[320444425,1711377040534,-500.0,0.0004448,120]
[320444427,1711377040543,-500.0,0.0004448,120]
[320444429,1711377040552,-500.0,0.0004448,120]
[320444431,1711377040561,-500.0,0.0004448,120]
[320444433,1711377040570,-24900.0,0.00044481,2]
[320444435,1711377040580,-1000.0,0.00045,2]
[320444437,1711377040589,-2362.37491709,0.00045,30]
[320444439,1711377040598,-153.0,0.00047397,2]
[320444441,1711377040607,-153.0,0.00047397,2]
[320444443,1711377040616,-153.0,0.00047397,2]
[320444445,1711377040626,-153.0,0.00047397,2]
[320444447,1711377040635,-153.0,0.00047397,2]
[320444449,1711377040645,-153.0,0.00047397,2]
[320444451,1711377040656,-153.0,0.00047578,2]
[320444452,1711377040665,-153.0,0.00047578,2]
[320444453,1711377040675,-153.0,0.00047578,2]
[320444454,1711377040687,-549.48065251,0.00047638,120]
[320444455,1711377040698,-549.48065251,0.00047638,120]
[320444456,1711377040708,-5369.28355659,0.00047644,120]
[320444457,1711377040717,-5369.28355659,0.00047647,120]
[320444458,1711377040727,-5369.28355659,0.00047651,120]
[320444459,1711377040736,-549.48065251,0.00047654,120]
[320444460,1711377040745,-549.48065251,0.00047671,120]
[320444461,1711377040754,-549.48065251,0.00047673,120]
[320444462,1711377040764,-5369.28355659,0.00047676,120]
[320444463,1711377040776,-5369.28355659,0.00047676,120]
[320444464,1711377040785,-5369.28355659,0.00047682,120]
[320444465,1711377040794,-549.48065251,0.00047689,120]
[320444466,1711377040804,-549.48065251,0.00047691,120]
[320444467,1711377040814,-5369.28355659,0.00047699,120]
[320444468,1711377040823,-1408.3366705,0.00047823,120]
[320444469,1711377040833,-1408.3366705,0.00047824,120]
[320444470,1711377040844,-1408.3366705,0.00047824,120]
[320444471,1711377040853,-1408.3366705,0.00047837,120]
[320444472,1711377040862,-1408.3366705,0.0004787,120]
[320444473,1711377040872,-1408.3366705,0.00047876,120]
[320444474,1711377040881,-153.0,0.00047878,2]
[320444475,1711377040891,-153.0,0.00047878,2]
[320444476,1711377040900,-153.0,0.00047878,2]
[320444477,1711377040909,-153.0,0.0004789,2]
[320444478,1711377040919,-153.0,0.0004789,2]
[320444479,1711377040930,-153.0,0.0004789,2]
[320444480,1711377040939,-201.9518537,0.0004789,2]
[320444481,1711377040949,-201.9518537,0.0004789,2]
[320444482,1711377040958,-201.9518537,0.0004789,2]
[320444483,1711377040968,-201.9518537,0.0004789,2]
[320444484,1711377040977,-1408.3366705,0.00047894,120]
[320444485,1711377040986,-621.09989303,0.0004799,120]
[320444486,1711377040996,-168.93092298,0.00048,120]
[320444487,1711377041005,-8009.144733,0.00048,10]
[320444488,1711377041014,-159.66412118,0.00048114,3]
[320444489,1711377041027,-153.0,0.00048178,2]
[320444490,1711377041037,-153.0,0.00048178,2]
[320444491,1711377041046,-153.0,0.00048178,2]
[320444492,1711377041056,-153.0,0.00048219,2]
[320444493,1711377041066,-153.0,0.00048219,2]
[320444494,1711377041076,-153.0,0.00048219,2]
[320444495,1711377041086,-153.0,0.00048219,2]
[320444496,1711377041096,-153.0,0.00048219,2]
[320444497,1711377041106,-153.0,0.00048219,2]
[320444498,1711377041115,-153.0,0.00048219,2]
[320444499,1711377041124,-153.0,0.00048219,2]
[320444500,1711377041134,-153.0,0.00048219,2]
[320444501,1711377041145,-153.0,0.00048219,2]
[320444502,1711377041155,-153.0,0.00048219,2]
[320444503,1711377041165,-153.0,0.00048219,2]
[320444504,1711377041174,-153.0,0.00048219,2]
[320444505,1711377041183,-153.0,0.00048219,2]
[320444506,1711377041193,-153.0,0.00048219,2]
[320444507,1711377041202,-153.0,0.00048219,2]
[320444508,1711377041212,-153.0,0.00048219,2]
[320444509,1711377041222,-153.0,0.00048219,2]
[320444510,1711377041231,-153.0,0.00048219,2]
[320444511,1711377041241,-153.0,0.00048219,2]
[320444512,1711377041251,-153.0,0.00048219,2]
[320444513,1711377041260,-153.0,0.00048219,2]
[320444515,1711377041269,-153.0,0.00048219,2]
[320444517,1711377041282,-153.0,0.00048219,2]
[320444519,1711377041293,-153.0,0.00048219,2]
[320444521,1711377041302,-153.0,0.00048219,2]
[320444523,1711377041312,-201.9518537,0.00048219,2]
[320444525,1711377041321,-153.0,0.00048219,2]
[320444527,1711377041330,-201.9518537,0.00048219,2]
[320444529,1711377041339,-201.9518537,0.00048219,2]
[320444531,1711377041349,-153.0,0.00048219,2]
[320444533,1711377041358,-153.0,0.00048219,2]
[320444534,1711377041367,-201.9518537,0.00048219,2]
[320444535,1711377041379,-153.0,0.00048219,2]
[320444536,1711377041389,-201.9518537,0.00048219,2]
[320444537,1711377041399,-153.0,0.00048219,2]
[320444538,1711377041409,-201.9518537,0.00048219,2]
[320444539,1711377041419,-299.0,0.00048391,4]
[320444540,1711377041428,-155.07733439,0.00048391,4]
[320444541,1711377041438,-1081.40589704,0.00048391,120]
[320444542,1711377041447,-307.04870363,0.00048391,4]
[320444543,1711377041456,-309.81411154,0.00048391,4]
[320444544,1711377041466,-608.98515856,0.00048391,4]
[320444545,1711377041475,-500.0,0.00048392,2]
[320444546,1711377041486,-45460.71886408,0.00048392,4]
[320444547,1711377041516,-783.32360093,0.00048392,4]
[320444548,1711377041534,-26504.42399941,0.00048392,4]
[320444549,1711377041545,-151.0,0.00048393,7]
[320444550,1711377041554,-151.0,0.00048393,7]
[320444551,1711377041564,-151.0,0.00048393,7]
[320444552,1711377041574,-5493.5717991,0.00048393,2]
[320444553,1711377041647,-497.6936996,0.00048393,2]
[320444554,1711377041660,-70307.16467345,0.00048393,2]
[320444555,1711377041672,-433.96761818,0.00048393,2]
[320444710,1711377044296,-205.27707627,0.00035908,4]
[320444712,1711377044307,-226.42456802,0.000378,4]
[320444714,1711377044318,-341.82752476,0.00039492,2]
[320444815,1711377046591,-243.23269458,0.00039492,2]
[320444816,1711377046601,-1822.42783438,0.00039492,2]
[320444817,1711377046611,-2644.93343496,0.0004,7]
[320444818,1711377046621,-500.0,0.00041093,31]
[320444819,1711377046631,-500.0,0.00041093,31]
[320444820,1711377046640,-478.02324048,0.00041093,31]
[320444821,1711377046650,-153.0,0.00047397,2]
[320444822,1711377046660,-153.0,0.00047397,2]
[320444823,1711377046670,-153.0,0.00048219,2]
[320444824,1711377046679,-244.2827956,0.00048393,2]
[320444825,1711377046700,-15386.35814412,0.00048393,2]
[320444826,1711377046710,-500.0,0.00048447,2]
[320444827,1711377046719,-500.0,0.00048592,2]
[320444828,1711377046729,-500.0,0.00048592,2]
[320444829,1711377046738,-500.0,0.00048592,2]
[320444830,1711377046747,-500.0,0.00048592,2]
[320444831,1711377046757,-500.0,0.00048592,2]
[320444832,1711377046766,-3124.84388637,0.00048598,2]
[320444833,1711377046775,-500.0,0.00048599,2]
[320444834,1711377046788,-400.0,0.000486,26]
[320444835,1711377046797,-500.0,0.00048697,30]
[320444836,1711377046808,-500.0,0.00048697,30]
[320444837,1711377046823,-500.0,0.00048697,30]
[320444838,1711377046833,-500.0,0.00048697,30]
[320444839,1711377046843,-500.0,0.00048697,30]
[320444840,1711377046852,-500.0,0.00048697,30]
[320444842,1711377046867,-508.90684391,0.00048697,30]
[320444844,1711377046877,-481.91119976,0.00048697,2]
[320444846,1711377046886,-6319.84,0.00048697,120]
[320444848,1711377046895,-3685.96,0.00048697,120]
[320444850,1711377046905,-29981.75113515,0.00048698,120]
[320444855,1711377046946,-44021.73164739,0.00048698,120]
[320444857,1711377046957,-553.928,0.00048698,120]
[320444859,1711377046973,-323324.11080324,0.00048698,120]
[320444862,1711377046983,-151.0,0.00048698,7]
[320444863,1711377046993,-151.0,0.00048698,7]
[320444865,1711377047002,-3685.96,0.00048971,120]
[320444867,1711377047011,-504.82026978,0.00048979,7]
[320444870,1711377047021,-201.9518537,0.00049041,2]
[320444871,1711377047033,-201.9518537,0.00049041,2]
[320444873,1711377047043,-153.0,0.00049041,2]
[320444875,1711377047052,-153.0,0.00049041,2]
[320444877,1711377047061,-201.9518537,0.00049041,2]
[320444879,1711377047071,-153.0,0.00049041,2]
[320444880,1711377047080,-201.9518537,0.00049041,2]
[320444881,1711377047089,-201.9518537,0.00049041,2]
[320444882,1711377047098,-153.0,0.00049041,2]
[320444884,1711377047107,-153.0,0.00049041,2]
[320444885,1711377047117,-201.9518537,0.00049041,2]
[320444886,1711377047126,-153.0,0.00049041,2]
[320444887,1711377047135,-201.9518537,0.00049041,2]
[320444889,1711377047145,-153.0,0.00049041,2]
[320444891,1711377047156,-201.9518537,0.00049041,2]
[320444893,1711377047165,-201.9518537,0.00049041,2]
[320444894,1711377047174,-153.0,0.00049041,2]
[320444896,1711377047184,-153.0,0.00049041,2]
[320444898,1711377047194,-201.9518537,0.00049041,2]
[320444900,1711377047204,-153.0,0.00049041,2]
[320444902,1711377047214,-201.9518537,0.00049041,2]
[320444903,1711377047224,-153.0,0.00049041,2]
[320444904,1711377047234,-201.9518537,0.00049041,2]
[320444905,1711377047244,-153.0,0.00049041,2]
[320444907,1711377047255,-201.9518537,0.00049041,2]
[320444909,1711377047266,-201.9518537,0.00049041,2]
[320444910,1711377047276,-201.9518537,0.00049041,2]
[320444911,1711377047294,-201.9518537,0.00049041,2]
[320444912,1711377047305,-201.9518537,0.00049041,2]
[320444913,1711377047315,-201.9518537,0.00049041,2]
[320444914,1711377047326,-201.9518537,0.00049041,2]
[320444915,1711377047336,-201.9518537,0.00049041,2]
[320444916,1711377047347,-201.9518537,0.00049041,2]
[320444917,1711377047358,-201.9518537,0.00049041,2]
[320444918,1711377047368,-197.8438907,0.00049041,2]
[320444919,1711377047378,-1000.0,0.00049079,7]
[320444920,1711377047388,-155.11893532,0.00049213,120]
[320444921,1711377047397,-310.46096339,0.00049213,4]
[320444923,1711377047407,-151.0,0.00049215,7]
[320444925,1711377047417,-151.0,0.00049215,7]
[320444927,1711377047426,-151.0,0.00049215,7]
[320444928,1711377047436,-151.0,0.00049215,7]
[320444929,1711377047445,-151.0,0.00049215,7]
[320444931,1711377047455,-151.0,0.00049215,7]
[320444933,1711377047464,-151.0,0.00049215,7]
[320444935,1711377047474,-500.90056432,0.00049215,16]
[320444936,1711377047483,-510.1554806,0.00049215,2]
[320444937,1711377047493,-510.1554806,0.00049215,2]
[320444938,1711377047503,-510.1554806,0.00049215,2]
[320444939,1711377047513,-510.1554806,0.00049215,2]
[320444940,1711377047522,-510.1554806,0.00049215,2]
[320444941,1711377047535,-510.1554806,0.00049215,2]
[320444942,1711377047545,-510.1554806,0.00049215,2]
[320444943,1711377047555,-510.1554806,0.00049215,2]
[320444944,1711377047565,-510.1554806,0.00049215,2]
[320444945,1711377047574,-510.1554806,0.00049215,2]
[320444946,1711377047584,-510.1554806,0.00049215,2]
[320444947,1711377047593,-510.1554806,0.00049215,2]
[320444948,1711377047602,-510.1554806,0.00049215,2]
[320444949,1711377047612,-510.1554806,0.00049215,2]
[320444950,1711377047621,-510.1554806,0.00049215,2]
[320444951,1711377047630,-510.1554806,0.00049215,2]
[320444952,1711377047640,-510.1554806,0.00049215,2]
[320444953,1711377047649,-510.1554806,0.00049215,2]
[320444954,1711377047658,-510.1554806,0.00049215,2]
[320444955,1711377047667,-510.65,0.00049215,2]
[320444956,1711377047676,-2040.69692239,0.00049215,2]
[320444957,1711377047685,-2040.69692239,0.00049215,2]
[320444958,1711377047694,-2040.69692239,0.00049215,2]
[320444959,1711377047703,-2040.69692239,0.00049215,2]
[320444960,1711377047712,-2040.69692239,0.00049215,2]
[320444961,1711377047721,-2040.69692239,0.00049215,2]
[320444962,1711377047731,-2040.69692239,0.00049215,2]
[320444963,1711377047741,-2040.69692239,0.00049215,2]
[320444964,1711377047751,-2040.69692239,0.00049215,2]
[320444965,1711377047761,-2040.69692239,0.00049215,2]
[320444966,1711377047770,-2040.69692239,0.00049215,2]
[320444967,1711377047783,-2040.69692239,0.00049215,2]
[320444968,1711377047792,-2040.69692239,0.00049215,2]
[320444969,1711377047802,-214.11516299,0.00049215,2]
[320444970,1711377047814,-214.11516299,0.00049215,2]
[320444971,1711377047823,-214.11516299,0.00049215,2]
[320444972,1711377047833,-214.11516299,0.00049215,2]
[320444973,1711377047843,-214.11516299,0.00049215,2]
[320444974,1711377047853,-214.11516299,0.00049215,2]
[320444975,1711377047864,-214.11516299,0.00049215,2]
[320444976,1711377047873,-214.11516299,0.00049215,2]
[320444977,1711377047883,-214.11516299,0.00049215,2]
[320444978,1711377047893,-214.11516299,0.00049215,2]
[320444979,1711377047903,-214.11516299,0.00049215,2]
[320444980,1711377047912,-214.11516299,0.00049215,2]
[320444981,1711377047921,-214.11516299,0.00049215,2]
[320444982,1711377047932,-214.11516299,0.00049215,2]
[320444983,1711377047942,-214.11516299,0.00049215,2]
[320444984,1711377047951,-214.11516299,0.00049215,2]
[320444985,1711377047961,-214.11516299,0.00049215,2]
[320444987,1711377047971,-214.11516299,0.00049215,2]
[320444989,1711377047980,-214.11516299,0.00049215,2]
[320444991,1711377047989,-214.61,0.00049215,2]
[320444993,1711377047999,-856.53565194,0.00049215,2]
[320444995,1711377048008,-856.53565194,0.00049215,2]
[320444997,1711377048017,-856.53565194,0.00049215,2]
[320444999,1711377048027,-856.53565194,0.00049215,2]
[320445001,1711377048040,-856.53565194,0.00049215,2]
[320445003,1711377048048,-856.53565194,0.00049215,2]
[320445005,1711377048057,-856.53565194,0.00049215,2]
[320445007,1711377048066,-856.53565194,0.00049215,2]
[320445009,1711377048075,-856.53565194,0.00049215,2]
[320445011,1711377048084,-856.53565194,0.00049215,2]
[320445013,1711377048093,-856.53565194,0.00049215,2]
[320445015,1711377048102,-856.53565194,0.00049215,2]
[320445017,1711377048112,-856.53565194,0.00049215,2]
[320445019,1711377048122,-664.75560055,0.00049215,2]
[320445021,1711377048133,-664.75560055,0.00049215,2]
[320445023,1711377048142,-664.75560055,0.00049215,2]
[320445025,1711377048152,-664.75560055,0.00049215,2]
[320445027,1711377048162,-664.75560055,0.00049215,2]
[320445029,1711377048171,-664.75560055,0.00049215,2]
[320445032,1711377048182,-664.75560055,0.00049215,2]
[320445034,1711377048192,-664.75560055,0.00049215,2]
[320445036,1711377048201,-664.75560055,0.00049215,2]
[320445037,1711377048210,-664.75560055,0.00049215,2]
[320445040,1711377048220,-664.75560055,0.00049215,2]
[320445042,1711377048230,-664.75560055,0.00049215,2]
[320445044,1711377048239,-664.75560055,0.00049215,2]
[320445046,1711377048248,-207.675723,0.00049245,120]
[320445047,1711377048257,-3685.96,0.00049245,120]
[320445050,1711377048267,-166.10573421,0.0004931,4]
[320445052,1711377048276,-261.2950385,0.0004931,4]
[320445053,1711377048290,-290.93856558,0.0004931,4]
[320445055,1711377048299,-229.2473732,0.0004931,4]
[320445057,1711377048309,-202.33530807,0.0004931,4]
[320445060,1711377048319,-151.0,0.0004931,7]
[320445062,1711377048329,-151.0,0.0004931,7]
[320445064,1711377048339,-151.0,0.0004931,7]
[320445066,1711377048348,-151.0,0.0004931,7]
[320445068,1711377048357,-151.0,0.00049314,7]
[320445070,1711377048366,-161.51149199,0.00049315,4]
[320445072,1711377048375,-151.0,0.00049315,7]
[320445074,1711377048384,-151.0,0.00049315,7]
[320445076,1711377048394,-500.0,0.00049315,2]
[320445078,1711377048402,-151.0,0.00049315,7]
[320445079,1711377048411,-151.0,0.00049315,7]
[320445081,1711377048420,-151.0,0.00049315,7]
[320445084,1711377048430,-151.0,0.00049315,7]
[320445086,1711377048439,-151.0,0.00049315,7]
[320445088,1711377048449,-151.0,0.00049315,7]
[320445090,1711377048458,-151.0,0.00049315,7]
[320445091,1711377048467,-151.0,0.00049315,7]
[320445093,1711377048476,-250.459005,0.00049315,7]
[320445095,1711377048485,-20000.0,0.00049315,120]
[320445097,1711377048494,-20000.0,0.00049315,120]
[320445099,1711377048503,-20000.0,0.00049315,120]
[320445101,1711377048513,-20000.0,0.00049315,120]
[320445103,1711377048522,-20000.0,0.00049315,120]
[320445105,1711377048534,-20000.0,0.00049315,120]
[320445107,1711377048543,-20000.0,0.00049315,120]
[320445109,1711377048552,-20000.0,0.00049315,120]
[320445111,1711377048561,-20000.0,0.00049315,120]
[320445113,1711377048571,-20000.0,0.00049315,120]
[320445115,1711377048580,-20000.0,0.00049315,120]
[320445117,1711377048590,-5206.98305167,0.00049315,120]
[320450442,1711377161456,163.921151,0.00028013,20]
[320450443,1711377161680,163.921151,0.00028013,29]
[320450444,1711377161922,163.921151,0.00028013,38]
[320450445,1711377162139,163.921151,0.00028013,47]
[320450446,1711377162426,163.921151,0.00028013,56]
[320450447,1711377162628,163.921151,0.00028013,65]
[320450448,1711377162835,163.921151,0.00028013,74]
[320450449,1711377163039,163.921151,0.00028013,83]
[320450450,1711377163239,163.921151,0.00028013,92]
[320450451,1711377163464,163.921151,0.00028013,101]
[320450452,1711377163688,163.921151,0.00028013,110]
[320450453,1711377164113,163.921151,0.00028013,119]
[320450454,1711377365188,2605.4070795,0.00020472,2]
[320450455,1711377427725,500.0,0.00020472,2]
[320450456,1711377443715,500.0,0.00020472,2]
[320450458,1711377461718,500.0,0.00020472,2]
[320450459,1711377470476,5000.0,0.00027018,10]
[320450460,1711377485527,4094.60503357,0.00020472,2]
[320450461,1711377485737,500.0,0.00020472,2]
[320450462,1711377486499,2704.28208206,0.00020472,2]
[320450463,1711377503730,500.0,0.00020472,2]
[320450465,1711377525736,500.0,0.00020472,2]
[320450467,1711377543835,500.0,0.00020472,2]
[320450469,1711377561861,500.0,0.00020472,2]
[320450473,1711377582434,4956.32710137,0.00020472,2]
[320450474,1711377583732,500.0,0.00020472,2]
[320450478,1711377605182,-180.22166268,0.00023171,2]
[320450479,1711377605205,-5543.47254561,0.00023171,2]
[320450480,1711377605227,-154.95351395,0.00023171,2]
[320450481,1711377605249,-683.96804349,0.00023171,2]
[320450482,1711377605270,-816.54193756,0.00023171,2]
[320450483,1711377605292,-154.95351395,0.00023171,2]
[320450484,1711377605314,-154.95351395,0.00023172,2]
[320450485,1711377605335,-154.95351395,0.00023172,2]
[320450486,1711377605361,-1478.45909339,0.00023172,2]
[320450487,1711377605384,-3444.03044866,0.00023172,2]
[320450488,1711377605406,-1922.02642136,0.00023173,2]
[320450489,1711377605428,-920.79514438,0.00023173,2]
[320450490,1711377605449,-187.78507347,0.00023173,2]
[320450491,1711377605470,-2605.4070795,0.00023173,2]
[320450492,1711377605491,-160.87070723,0.00023173,2]
[320450493,1711377605516,-780.33195473,0.00023173,2]
[320450494,1711377605539,-2749.7413467,0.00023173,2]
[320450495,1711377605563,-322.828959,0.00023174,2]
[320450496,1711377605586,-471.05027514,0.00023174,2]
[320450497,1711377605607,-205.27707627,0.00023174,2]
[320450498,1711377605628,-864.38002108,0.00023175,2]
[320450499,1711377605651,-154.95351395,0.00023175,2]
[320450500,1711377605674,-3509.19508101,0.00023175,2]
[320450501,1711377605697,-192.09614906,0.00023175,2]
[320450502,1711377605719,-154.95351395,0.00023175,2]
[320450503,1711377605743,-154.95351395,0.00023175,2]
[320450504,1711377605771,-47377.43878495,0.00023175,2]
[320450505,1711377605793,-239.49533086,0.00023176,2]
[320450506,1711377605814,-617.73703242,0.00023176,2]
[320450507,1711377605835,-288.47550235,0.00023176,2]
[320450508,1711377605856,-1943.69973145,0.00023177,2]
[320450509,1711377607757,500.0,0.00020472,2]
[320450510,1711377627732,500.0,0.00020472,2]
[320450511,1711377650927,500.0,0.00020472,2]
[320450512,1711377655868,163.099968,0.00023288,61]
[320450513,1711377656110,163.099968,0.00023288,120]
[320450514,1711377667747,500.0,0.00020472,2]
[320450515,1711377673190,-608.98515856,0.00022012,2]
[320450516,1711377673213,-435.45196325,0.00022012,2]
[320450517,1711377673234,-211.33899684,0.00022012,2]
[320450518,1711377673256,-157.74893899,0.00022013,2]
[320450519,1711377673279,-1888.81529834,0.00022013,2]
[320450520,1711377673300,-535.34594372,0.00022175,2]
[320450521,1711377673323,-383.5693715,0.00022176,2]
[320450522,1711377674041,280.7443288,0.00022011,2]
[320450523,1711377685758,500.0,0.00020472,2]
[320450524,1711377697554,688.44756833,0.00020472,2]
[320450525,1711377743802,-3000.0,0.00021291,2]
[320450526,1711377743823,-160.87070723,0.00021922,2]
[320450527,1711377743843,-1301.46396623,0.00021922,2]
[320450528,1711377743865,-920.79514438,0.00021923,2]
[320450529,1711377743889,-180.22166268,0.00021923,2]
[320450530,1711377743910,-205.27707627,0.00021923,2]
[320450531,1711377743931,-154.95351395,0.00021923,2]
[320450532,1711377743953,-166.666666,0.00021924,2]
[320450533,1711377743974,-1478.45909339,0.00022009,2]
[320450534,1711377743995,-300.0,0.0002201,2]
[320450535,1711377744017,-1610.48670662,0.0002201,2]
[320450536,1711377744038,-281.08704013,0.0002201,2]
[320450537,1711377744060,-500.0,0.00022011,2]
[320450538,1711377744082,-485.69872889,0.00022011,2]
[320450539,1711377744104,-1922.02642136,0.00022337,2]